[Event "Early-Titled-Tuesday-Blitz-January-30-2024"]
[Site "Chess.com"]
[Date "2024.01.30"]
[Round "2"]
[White "TigrVShlyape"]
[Black "DvaHrasta"]
[Result "1/2-1/2"]
[WhiteElo "2920"]
[BlackElo "2526"]
[TimeControl "180+1"]
[EndTime "8:18:19 PST"]
[Termination "Game drawn by agreement"]

1. d4 {[%clk 0:03:00.9]} 1... Nf6 {[%clk 0:02:59.2]} 2. Bf4 {[%clk 0:02:59.2]}
2... d5 {[%clk 0:02:57.9]} 3. e3 {[%clk 0:02:58.8]} 3... e6 {[%clk 0:02:58.2]}
4. Nf3 {[%clk 0:02:58.1]} 4... Bd6 {[%clk 0:02:58.4]} 5. Bg3 {[%clk 0:02:56.9]}
5... O-O {[%clk 0:02:57.8]} 6. c4 {[%clk 0:02:42.9]} 6... b6 {[%clk 0:02:51.3]}
7. Nc3 {[%clk 0:02:42.2]} 7... Ba6 {[%clk 0:02:44.4]} 8. Qa4 {[%clk 0:02:17.6]}
8... dxc4 {[%clk 0:02:29]} 9. Bxc4 {[%clk 0:02:16.1]} 9... Bb7 {[%clk
0:02:26.2]} 10. Be2 {[%clk 0:02:13.6]} 10... a6 {[%clk 0:02:23.1]} 11. Rd1
{[%clk 0:01:56.9]} 11... b5 {[%clk 0:02:19]} 12. Qb3 {[%clk 0:01:48.8]} 12...
Nbd7 {[%clk 0:02:11.7]} 13. O-O {[%clk 0:01:48.2]} 13... Bxg3 {[%clk 0:02:03.3]}
14. hxg3 {[%clk 0:01:46.5]} 14... Qe7 {[%clk 0:02:01.4]} 15. a3 {[%clk
0:01:34.9]} 15... c5 {[%clk 0:02:00.9]} 16. dxc5 {[%clk 0:01:33.7]} 16... Nxc5
{[%clk 0:02:01]} 17. Qb4 {[%clk 0:01:32.8]} 17... Rfc8 {[%clk 0:01:54.8]} 18.
Rc1 {[%clk 0:01:23.9]} 18... Nfd7 {[%clk 0:01:42.5]} 19. Rfd1 {[%clk 0:01:20.9]}
19... Qf6 {[%clk 0:01:33.2]} 20. Qf4 {[%clk 0:01:12.7]} 20... Qxf4 {[%clk
0:01:28.7]} 21. gxf4 {[%clk 0:01:12.2]} 21... Nb6 {[%clk 0:01:23.1]} 22. Nd4
{[%clk 0:00:51.4]} 22... Kf8 {[%clk 0:01:19]} 23. b4 {[%clk 0:00:44.4]} 23...
Ne4 {[%clk 0:01:11.3]} 24. Nxe4 {[%clk 0:00:43.1]} 24... Bxe4 {[%clk 0:01:10.3]}
25. f3 {[%clk 0:00:26.5]} 25... Bd5 {[%clk 0:01:09.8]} 26. Kf2 {[%clk
0:00:26.3]} 26... Bc4 {[%clk 0:01:06.7]} 27. Bxc4 {[%clk 0:00:20.4]} 27... Nxc4
{[%clk 0:01:06.6]} 28. Ra1 {[%clk 0:00:14.1]} 28... Nb2 {[%clk 0:01:02.5]} 29.
Rd2 {[%clk 0:00:13.5]} 29... Na4 {[%clk 0:01:00.3]} 30. g4 {[%clk 0:00:09]}
30... h6 {[%clk 0:00:58.1]} 31. g5 {[%clk 0:00:08.3]} 1/2-1/2

[Event "Early-Titled-Tuesday-Blitz-January-30-2024"]
[Site "Chess.com"]
[Date "2024.01.30"]
[Round "2"]
[White "blitis"]
[Black "Shield12"]
[Result "0-1"]
[WhiteElo "2623"]
[BlackElo "3009"]
[TimeControl "180+1"]
[EndTime "8:18:20 PST"]
[Termination "Shield12 won on time"]

1. e4 {[%clk 0:03:00.9]} 1... c5 {[%clk 0:03:00.2]} 2. Nf3 {[%clk 0:03:00.8]}
2... e6 {[%clk 0:03:00.8]} 3. d3 {[%clk 0:03:01.2]} 3... Nc6 {[%clk 0:03:01]} 4.
g3 {[%clk 0:03:01.1]} 4... d5 {[%clk 0:03:01.9]} 5. Nbd2 {[%clk 0:03:00.6]} 5...
Bd6 {[%clk 0:02:59.6]} 6. Bg2 {[%clk 0:03:00.1]} 6... Nge7 {[%clk 0:03:00.2]} 7.
O-O {[%clk 0:02:59.7]} 7... O-O {[%clk 0:03:00.8]} 8. c3 {[%clk 0:02:56.5]} 8...
d4 {[%clk 0:02:55.9]} 9. Nc4 {[%clk 0:02:54.7]} 9... Bc7 {[%clk 0:02:55.8]} 10.
a4 {[%clk 0:02:54.2]} 10... e5 {[%clk 0:02:55.4]} 11. cxd4 {[%clk 0:02:44.5]}
11... cxd4 {[%clk 0:02:54.1]} 12. b4 {[%clk 0:02:42.9]} 12... f6 {[%clk
0:02:47.2]} 13. b5 {[%clk 0:02:39.3]} 13... Na5 {[%clk 0:02:47.3]} 14. Nxa5
{[%clk 0:02:25.3]} 14... Bxa5 {[%clk 0:02:48.2]} 15. Ba3 {[%clk 0:02:25]} 15...
Be6 {[%clk 0:02:47.7]} 16. Rc1 {[%clk 0:02:18.6]} 16... Bc3 {[%clk 0:02:46.3]}
17. Nd2 {[%clk 0:02:15]} 17... Qd7 {[%clk 0:02:41.3]} 18. Nb1 {[%clk 0:02:08.7]}
18... Ba5 {[%clk 0:02:36.7]} 19. f4 {[%clk 0:02:01.8]} 19... Rfc8 {[%clk
0:02:34.2]} 20. fxe5 {[%clk 0:01:59.6]} 20... fxe5 {[%clk 0:02:34.2]} 21. Rxc8+
{[%clk 0:01:56.3]} 21... Rxc8 {[%clk 0:02:33.7]} 22. Nd2 {[%clk 0:01:40]} 22...
Rc3 {[%clk 0:02:31.3]} 23. Qf3 {[%clk 0:01:24.1]} 23... Qe8 {[%clk 0:02:30.2]}
24. Bd6 {[%clk 0:00:49.8]} 24... Ng6 {[%clk 0:02:24.1]} 25. h4 {[%clk
0:00:47.5]} 25... Qd8 {[%clk 0:02:13.8]} 26. Nb1 {[%clk 0:00:35]} 26... Qxd6
{[%clk 0:02:12.6]} 27. Nxc3 {[%clk 0:00:33.2]} 27... dxc3 {[%clk 0:02:13.5]} 28.
h5 {[%clk 0:00:33.6]} 28... Nf8 {[%clk 0:02:12.6]} 29. Bh3 {[%clk 0:00:29.9]}
29... Bb3 {[%clk 0:01:57.2]} 30. h6 {[%clk 0:00:20.5]} 30... gxh6 {[%clk
0:01:41.6]} 31. d4 {[%clk 0:00:17.6]} 31... Bb6 {[%clk 0:01:34.8]} 32. Kh2
{[%clk 0:00:14.1]} 32... Bxd4 {[%clk 0:01:33.5]} 33. Qg4+ {[%clk 0:00:13.1]}
33... Kh8 {[%clk 0:01:30.2]} 34. Qc8 {[%clk 0:00:13.1]} 34... Bc5 {[%clk
0:01:28.4]} 35. Qxb7 {[%clk 0:00:09]} 35... c2 {[%clk 0:01:26.5]} 36. b6 {[%clk
0:00:07.6]} 36... axb6 {[%clk 0:01:25.7]} 37. a5 {[%clk 0:00:07.5]} 37... Bc4
{[%clk 0:01:23.1]} 38. Rxf8+ {[%clk 0:00:03.2]} 38... Qxf8 {[%clk 0:01:21.8]}
39. a6 {[%clk 0:00:02.9]} 39... c1=Q {[%clk 0:01:18.7]} 0-1

[Event "Early-Titled-Tuesday-Blitz-January-30-2024"]
[Site "Chess.com"]
[Date "2024.01.30"]
[Round "2"]
[White "h4parah5"]
[Black "sergeikim"]
[Result "1-0"]
[WhiteElo "2895"]
[BlackElo "2590"]
[TimeControl "180+1"]
[EndTime "8:18:20 PST"]
[Termination "h4parah5 won by resignation"]

1. Nf3 {[%clk 0:03:00.9]} 1... Nf6 {[%clk 0:02:59.5]} 2. b3 {[%clk 0:03:00.6]}
2... g6 {[%clk 0:02:59.6]} 3. Bb2 {[%clk 0:03:00.4]} 3... Bg7 {[%clk 0:03:00]}
4. g3 {[%clk 0:03:01]} 4... d6 {[%clk 0:03:00.3]} 5. Bg2 {[%clk 0:03:01]} 5...
O-O {[%clk 0:03:00.4]} 6. d4 {[%clk 0:03:00.7]} 6... e5 {[%clk 0:03:00.1]} 7.
dxe5 {[%clk 0:02:59.5]} 7... Nfd7 {[%clk 0:03:00.4]} 8. Nc3 {[%clk 0:02:58.9]}
8... dxe5 {[%clk 0:03:00.7]} 9. Qd2 {[%clk 0:02:55.6]} 9... c6 {[%clk
0:02:59.3]} 10. O-O-O {[%clk 0:02:55]} 10... Qa5 {[%clk 0:02:57.5]} 11. Kb1
{[%clk 0:02:54]} 11... Na6 {[%clk 0:02:48]} 12. h4 {[%clk 0:02:52.3]} 12... h5
{[%clk 0:02:47.1]} 13. Ne4 {[%clk 0:02:50.8]} 13... Qxd2 {[%clk 0:02:44.8]} 14.
Nfxd2 {[%clk 0:02:45.1]} 14... Ndc5 {[%clk 0:02:40.9]} 15. Nc4 {[%clk
0:02:40.3]} 15... Nxe4 {[%clk 0:02:35.5]} 16. Bxe4 {[%clk 0:02:41.2]} 16... Bg4
{[%clk 0:02:27.9]} 17. f3 {[%clk 0:02:32.4]} 17... Nc5 {[%clk 0:02:24.8]} 18.
Bxg6 {[%clk 0:02:06.9]} 18... fxg6 {[%clk 0:02:19.6]} 19. fxg4 {[%clk
0:02:05.9]} 19... hxg4 {[%clk 0:02:20.1]} 20. Ba3 {[%clk 0:02:02.9]} 20... Ne4
{[%clk 0:02:09.6]} 21. Bxf8 {[%clk 0:01:59.7]} 21... Rxf8 {[%clk 0:02:09.5]} 22.
Rd7 {[%clk 0:01:54.3]} 22... Nc3+ {[%clk 0:01:54.2]} 23. Kb2 {[%clk 0:01:43.6]}
23... Nxe2 {[%clk 0:01:48.4]} 24. Rxb7 {[%clk 0:01:40.8]} 24... e4+ {[%clk
0:01:47]} 25. Ka3 {[%clk 0:01:40.3]} 25... Nxg3 {[%clk 0:01:38.2]} 26. Rg1
{[%clk 0:01:29.9]} 26... Rf3 {[%clk 0:01:33.4]} 27. Rxa7 {[%clk 0:01:13.2]}
27... e3 {[%clk 0:01:28.4]} 28. Ra8+ {[%clk 0:01:13]} 28... Bf8+ {[%clk
0:01:26.3]} 29. Kb2 {[%clk 0:00:59]} 29... e2 {[%clk 0:01:26.2]} 30. Re8 {[%clk
0:00:58.3]} 30... Kf7 {[%clk 0:01:18.2]} 31. Re3 {[%clk 0:00:56.1]} 31... Rxe3
{[%clk 0:01:06.6]} 32. Nxe3 {[%clk 0:00:57]} 32... Nf1 {[%clk 0:00:53.6]} 33.
Ng2 {[%clk 0:00:40.8]} 33... Bc5 {[%clk 0:00:47.2]} 34. Rh1 {[%clk 0:00:40.9]}
34... Ke6 {[%clk 0:00:43.8]} 35. Nf4+ {[%clk 0:00:39.5]} 35... Kf5 {[%clk
0:00:42.1]} 36. Nxe2 {[%clk 0:00:40.4]} 36... Ne3 {[%clk 0:00:40.5]} 37. h5
{[%clk 0:00:39]} 1-0

[Event "Early-Titled-Tuesday-Blitz-January-30-2024"]
[Site "Chess.com"]
[Date "2024.01.30"]
[Round "2"]
[White "GMT4114"]
[Black "ljuks68"]
[Result "1-0"]
[WhiteElo "1938"]
[BlackElo "2434"]
[TimeControl "180+1"]
[EndTime "8:18:20 PST"]
[Termination "GMT4114 won on time"]

1. e4 {[%clk 0:03:00.9]} 1... e6 {[%clk 0:03:00.1]} 2. d4 {[%clk 0:03:00.7]}
2... d5 {[%clk 0:03:00.7]} 3. Nc3 {[%clk 0:03:01.3]} 3... Bb4 {[%clk 0:03:00]}
4. Ne2 {[%clk 0:03:01]} 4... Nc6 {[%clk 0:02:59.6]} 5. a3 {[%clk 0:03:00.4]}
5... Ba5 {[%clk 0:02:59.7]} 6. b4 {[%clk 0:02:58.7]} 6... Bb6 {[%clk 0:02:59.6]}
7. Bb2 {[%clk 0:02:44.9]} 7... Nge7 {[%clk 0:02:52.6]} 8. Qd2 {[%clk 0:02:45.1]}
8... O-O {[%clk 0:02:48.6]} 9. Na4 {[%clk 0:02:44.5]} 9... dxe4 {[%clk
0:02:44.6]} 10. c4 {[%clk 0:02:40.1]} 10... a6 {[%clk 0:02:38.8]} 11. Nxb6
{[%clk 0:02:40.2]} 11... cxb6 {[%clk 0:02:38.6]} 12. Ng3 {[%clk 0:02:37.7]}
12... f5 {[%clk 0:02:37.7]} 13. Rd1 {[%clk 0:02:34.7]} 13... Bd7 {[%clk
0:02:20.9]} 14. Qc3 {[%clk 0:02:33.9]} 14... Rf6 {[%clk 0:01:40.4]} 15. Nh5
{[%clk 0:01:59.3]} 15... Rh6 {[%clk 0:01:34.7]} 16. Be2 {[%clk 0:01:19.5]} 16...
Qe8 {[%clk 0:00:45.8]} 17. Nxg7 {[%clk 0:01:09.6]} 17... Kxg7 {[%clk 0:00:44.7]}
18. d5+ {[%clk 0:01:09.8]} 18... e5 {[%clk 0:00:44.4]} 19. dxc6 {[%clk
0:01:09.6]} 19... Nxc6 {[%clk 0:00:44.3]} 20. f4 {[%clk 0:00:46.8]} 20... exf3
{[%clk 0:00:32.1]} 21. Bxf3 {[%clk 0:00:32.2]} 21... Nd4 {[%clk 0:00:29.8]} 22.
O-O {[%clk 0:00:24.6]} 1-0

[Event "Early-Titled-Tuesday-Blitz-January-30-2024"]
[Site "Chess.com"]
[Date "2024.01.30"]
[Round "2"]
[White "Road2GM3000"]
[Black "GAusal"]
[Result "0-1"]
[WhiteElo "2510"]
[BlackElo "2273"]
[TimeControl "180+1"]
[EndTime "8:18:30 PST"]
[Termination "GAusal won by resignation"]

1. d4 {[%clk 0:03:00.9]} 1... d5 {[%clk 0:02:59.2]} 2. c4 {[%clk 0:03:00.8]}
2... c6 {[%clk 0:02:56.5]} 3. Nc3 {[%clk 0:03:00.9]} 3... dxc4 {[%clk 0:02:54]}
4. e4 {[%clk 0:02:59.2]} 4... b5 {[%clk 0:02:53.4]} 5. a4 {[%clk 0:02:58.8]}
5... b4 {[%clk 0:02:50.2]} 6. Na2 {[%clk 0:02:56.8]} 6... Nf6 {[%clk 0:02:45.2]}
7. f3 {[%clk 0:02:55]} 7... b3 {[%clk 0:02:42.5]} 8. Nc3 {[%clk 0:02:54.3]} 8...
Ba6 {[%clk 0:02:38]} 9. Be3 {[%clk 0:02:51.6]} 9... e6 {[%clk 0:02:34.3]} 10.
Nge2 {[%clk 0:02:50.2]} 10... Nbd7 {[%clk 0:02:34.9]} 11. Ng3 {[%clk 0:02:50.5]}
11... Bb4 {[%clk 0:02:23.4]} 12. Rc1 {[%clk 0:02:48.4]} 12... c5 {[%clk
0:02:20]} 13. Be2 {[%clk 0:02:47.1]} 13... O-O {[%clk 0:02:14.9]} 14. O-O {[%clk
0:02:47.1]} 14... cxd4 {[%clk 0:02:11.5]} 15. Bxd4 {[%clk 0:02:47.2]} 15... e5
{[%clk 0:02:03.8]} 16. Be3 {[%clk 0:02:46]} 16... Qe7 {[%clk 0:02:03.4]} 17. Nd5
{[%clk 0:02:44.7]} 17... Nxd5 {[%clk 0:01:58.4]} 18. Qxd5 {[%clk 0:02:41.4]}
18... Rfd8 {[%clk 0:01:55.8]} 19. Nf5 {[%clk 0:02:39.4]} 19... Qf6 {[%clk
0:01:51.4]} 20. f4 {[%clk 0:02:03.7]} 20... Rac8 {[%clk 0:01:45.8]} 21. Bxc4
{[%clk 0:01:27.5]} 21... Nb6 {[%clk 0:01:43.2]} 22. fxe5 {[%clk 0:01:26.3]}
22... Nxd5 {[%clk 0:01:34.7]} 23. exf6 {[%clk 0:01:24.9]} 23... Nxe3 {[%clk
0:01:31.6]} 24. Nxe3 {[%clk 0:01:16.8]} 24... Bc5 {[%clk 0:01:24.2]} 25. Rc3
{[%clk 0:00:26.3]} 25... Bxc4 {[%clk 0:01:20.7]} 26. Rf3 {[%clk 0:00:19.3]}
26... Bxe3+ {[%clk 0:01:16.6]} 27. Rfxe3 {[%clk 0:00:18.2]} 27... Be6 {[%clk
0:01:16.9]} 28. Rg3 {[%clk 0:00:16.1]} 28... g6 {[%clk 0:01:15.3]} 29. Rgd3
{[%clk 0:00:15.2]} 29... Rxd3 {[%clk 0:01:12.5]} 30. Rxd3 {[%clk 0:00:15.1]}
30... h5 {[%clk 0:01:08.5]} 31. Kf2 {[%clk 0:00:14.6]} 31... Kf8 {[%clk
0:01:06.2]} 32. Kg3 {[%clk 0:00:13.6]} 32... Ke8 {[%clk 0:01:06.1]} 33. Kf4
{[%clk 0:00:13.7]} 33... Rc7 {[%clk 0:01:04.6]} 34. h3 {[%clk 0:00:12.6]} 34...
a5 {[%clk 0:01:04.4]} 35. g4 {[%clk 0:00:13.1]} 35... hxg4 {[%clk 0:01:03.2]}
36. hxg4 {[%clk 0:00:14]} 36... Rc4 {[%clk 0:01:03.3]} 37. Rh3 {[%clk
0:00:14.4]} 37... Rxa4 {[%clk 0:01:02.1]} 38. Ke5 {[%clk 0:00:14.7]} 38... Kd7
{[%clk 0:01:02.1]} 39. Rd3+ {[%clk 0:00:14.4]} 39... Kc7 {[%clk 0:01:01.9]} 40.
Rc3+ {[%clk 0:00:14.4]} 40... Kb6 {[%clk 0:01:01.5]} 41. g5 {[%clk 0:00:13.2]}
41... Rb4 {[%clk 0:00:59.9]} 42. Rd3 {[%clk 0:00:11]} 42... Rb5+ {[%clk
0:00:59.9]} 43. Kf4 {[%clk 0:00:10.4]} 43... a4 {[%clk 0:00:59.7]} 44. Rd6+
{[%clk 0:00:08.6]} 44... Kc5 {[%clk 0:00:59.9]} 45. Rd8 {[%clk 0:00:08.1]} 45...
a3 {[%clk 0:01:00.1]} 46. bxa3 {[%clk 0:00:07]} 46... b2 {[%clk 0:01:00.5]} 0-1

[Event "Early-Titled-Tuesday-Blitz-January-30-2024"]
[Site "Chess.com"]
[Date "2024.01.30"]
[Round "2"]
[White "RaulPerezGuerra"]
[Black "Predator0608"]
[Result "1-0"]
[WhiteElo "2407"]
[BlackElo "2492"]
[TimeControl "180+1"]
[EndTime "8:18:32 PST"]
[Termination "RaulPerezGuerra won by checkmate"]

1. d4 {[%clk 0:03:00.9]} 1... f5 {[%clk 0:02:48.6]} 2. f4 {[%clk 0:02:56.3]}
2... Nf6 {[%clk 0:02:45.4]} 3. Nf3 {[%clk 0:02:56.1]} 3... Ne4 {[%clk
0:02:45.6]} 4. e3 {[%clk 0:02:51]} 4... e6 {[%clk 0:02:42.9]} 5. Bd3 {[%clk
0:02:50.6]} 5... Be7 {[%clk 0:02:38]} 6. O-O {[%clk 0:02:50.2]} 6... O-O {[%clk
0:02:36.5]} 7. c4 {[%clk 0:02:50.8]} 7... d5 {[%clk 0:02:35.4]} 8. Nc3 {[%clk
0:02:50.3]} 8... c6 {[%clk 0:02:34.9]} 9. Ne5 {[%clk 0:02:45.3]} 9... Nd7 {[%clk
0:02:33.4]} 10. Bxe4 {[%clk 0:02:44.2]} 10... fxe4 {[%clk 0:02:33.9]} 11. cxd5
{[%clk 0:02:43.8]} 11... cxd5 {[%clk 0:02:21.1]} 12. b3 {[%clk 0:02:40.2]} 12...
Nxe5 {[%clk 0:02:17.3]} 13. fxe5 {[%clk 0:02:39.6]} 13... Bd7 {[%clk 0:02:17.4]}
14. Rxf8+ {[%clk 0:02:38.9]} 14... Qxf8 {[%clk 0:02:18]} 15. Ne2 {[%clk
0:02:37.8]} 15... Bg5 {[%clk 0:02:14]} 16. Bd2 {[%clk 0:02:27.2]} 16... Bb5
{[%clk 0:02:10.8]} 17. a4 {[%clk 0:02:21.9]} 17... Bd3 {[%clk 0:02:07.1]} 18.
Rc1 {[%clk 0:02:21.8]} 18... Qa3 {[%clk 0:01:48.4]} 19. Rc7 {[%clk 0:02:14.6]}
19... Rf8 {[%clk 0:01:19]} 20. h3 {[%clk 0:02:01.4]} 20... Rf7 {[%clk
0:00:56.6]} 21. Rc8+ {[%clk 0:01:54.1]} 21... Rf8 {[%clk 0:00:57.1]} 22. Rc7
{[%clk 0:01:54.6]} 22... Rf7 {[%clk 0:00:22.1]} 23. Rxf7 {[%clk 0:01:53.9]}
23... Kxf7 {[%clk 0:00:22.2]} 24. Nc1 {[%clk 0:01:54.8]} 24... Qb2 {[%clk
0:00:17.8]} 25. Nxd3 {[%clk 0:01:50.9]} 25... exd3 {[%clk 0:00:18.7]} 26. Qh5+
{[%clk 0:01:51.3]} 26... g6 {[%clk 0:00:16.6]} 27. Qxh7+ {[%clk 0:01:49.8]}
27... Kf8 {[%clk 0:00:15.8]} 28. Bb4+ {[%clk 0:01:49.1]} 28... Ke8 {[%clk
0:00:15.8]} 29. Qg8+ {[%clk 0:01:36.2]} 29... Kd7 {[%clk 0:00:14.8]} 30. Qf7+
{[%clk 0:01:36.7]} 30... Kd8 {[%clk 0:00:14.6]} 31. Qf8+ {[%clk 0:01:34.7]}
31... Kd7 {[%clk 0:00:14.6]} 32. Qd6+ {[%clk 0:01:34.8]} 32... Ke8 {[%clk
0:00:14]} 33. Qxe6+ {[%clk 0:01:33.3]} 33... Kd8 {[%clk 0:00:14.2]} 34. Qd6+
{[%clk 0:01:33.3]} 34... Kc8 {[%clk 0:00:11.4]} 35. Qf8+ {[%clk 0:01:30.6]}
35... Kc7 {[%clk 0:00:10.3]} 36. Qc5+ {[%clk 0:01:17.5]} 36... Kb8 {[%clk
0:00:07.1]} 37. Qf8+ {[%clk 0:01:09.6]} 37... Kc7 {[%clk 0:00:07.4]} 38. Qf7+
{[%clk 0:01:10.1]} 38... Kc8 {[%clk 0:00:07]} 39. Qe8+ {[%clk 0:01:05]} 39...
Kc7 {[%clk 0:00:07]} 40. Bd6+ {[%clk 0:01:04.4]} 40... Kb6 {[%clk 0:00:07]} 41.
Qb5# {[%clk 0:01:04.9]} 1-0

[Event "Early-Titled-Tuesday-Blitz-January-30-2024"]
[Site "Chess.com"]
[Date "2024.01.30"]
[Round "2"]
[White "InitiatingASC"]
[Black "baki83"]
[Result "0-1"]
[WhiteElo "2415"]
[BlackElo "2816"]
[TimeControl "180+1"]
[EndTime "8:18:33 PST"]
[Termination "baki83 won by checkmate"]

1. d4 {[%clk 0:03:00.9]} 1... d5 {[%clk 0:02:58.7]} 2. c4 {[%clk 0:03:00.7]}
2... dxc4 {[%clk 0:02:59.2]} 3. e3 {[%clk 0:03:00.3]} 3... Nf6 {[%clk
0:02:58.7]} 4. Bxc4 {[%clk 0:02:58.6]} 4... e6 {[%clk 0:02:59.2]} 5. Nc3 {[%clk
0:02:58.3]} 5... a6 {[%clk 0:02:59.1]} 6. Nf3 {[%clk 0:02:58.1]} 6... b5 {[%clk
0:02:51]} 7. Bb3 {[%clk 0:02:57.3]} 7... c5 {[%clk 0:02:49.5]} 8. O-O {[%clk
0:02:56.9]} 8... Bb7 {[%clk 0:02:48.9]} 9. a4 {[%clk 0:02:49.9]} 9... c4 {[%clk
0:02:42.6]} 10. Bc2 {[%clk 0:02:49.7]} 10... b4 {[%clk 0:02:42.8]} 11. Ne2
{[%clk 0:02:45.4]} 11... Nbd7 {[%clk 0:02:36.5]} 12. Ng3 {[%clk 0:02:43]} 12...
h5 {[%clk 0:02:30.3]} 13. h4 {[%clk 0:02:34.2]} 13... Bd6 {[%clk 0:02:29.7]} 14.
Qe2 {[%clk 0:02:11.5]} 14... Qb6 {[%clk 0:01:26.1]} 15. Qxc4 {[%clk 0:01:44.9]}
15... Rc8 {[%clk 0:01:23]} 16. Qe2 {[%clk 0:01:44.9]} 16... O-O {[%clk
0:01:07.7]} 17. Bd3 {[%clk 0:01:36.3]} 17... Bxg3 {[%clk 0:01:05.4]} 18. fxg3
{[%clk 0:01:36.3]} 18... Ne4 {[%clk 0:01:05.7]} 19. Kh2 {[%clk 0:01:02.1]} 19...
Qd6 {[%clk 0:00:57.1]} 20. Qe1 {[%clk 0:00:54.6]} 20... a5 {[%clk 0:00:46.2]}
21. Nd2 {[%clk 0:00:44.2]} 21... Nef6 {[%clk 0:00:38.1]} 22. Nc4 {[%clk
0:00:35.2]} 22... Qd5 {[%clk 0:00:24]} 23. Qe2 {[%clk 0:00:35.3]} 23... Ng4+
{[%clk 0:00:23.4]} 24. Kg1 {[%clk 0:00:31.1]} 24... Ndf6 {[%clk 0:00:23.5]} 25.
Nb6 {[%clk 0:00:27]} 25... Qd6 {[%clk 0:00:23.6]} 26. Nxc8 {[%clk 0:00:21.6]}
26... Qxg3 {[%clk 0:00:22.3]} 27. Ne7+ {[%clk 0:00:14.6]} 27... Kh8 {[%clk
0:00:22.3]} 28. Rf3 {[%clk 0:00:01.2]} 28... Qh2+ {[%clk 0:00:21.4]} 29. Kf1
{[%clk 0:00:01.8]} 29... Qh1# {[%clk 0:00:22]} 0-1

[Event "Early-Titled-Tuesday-Blitz-January-30-2024"]
[Site "Chess.com"]
[Date "2024.01.30"]
[Round "2"]
[White "Bkmzzzzz"]
[Black "mac0504"]
[Result "0-1"]
[WhiteElo "2346"]
[BlackElo "2731"]
[TimeControl "180+1"]
[EndTime "8:18:34 PST"]
[Termination "mac0504 won by resignation"]

1. e4 {[%clk 0:03:00.9]} 1... Nc6 {[%clk 0:02:58.8]} 2. Nf3 {[%clk 0:02:59.2]}
2... d6 {[%clk 0:02:59.4]} 3. Nc3 {[%clk 0:02:58.7]} 3... Nf6 {[%clk 0:02:59.5]}
4. d4 {[%clk 0:02:59]} 4... g6 {[%clk 0:02:59.9]} 5. d5 {[%clk 0:02:51.1]} 5...
Nb8 {[%clk 0:02:58.4]} 6. Bd3 {[%clk 0:02:50.7]} 6... Bg7 {[%clk 0:02:59]} 7.
O-O {[%clk 0:02:51]} 7... O-O {[%clk 0:02:59.8]} 8. Nd4 {[%clk 0:02:37.2]} 8...
c5 {[%clk 0:02:55.6]} 9. dxc6 {[%clk 0:02:34.2]} 9... bxc6 {[%clk 0:02:56.1]}
10. h3 {[%clk 0:02:12.6]} 10... Bb7 {[%clk 0:02:55.4]} 11. Re1 {[%clk 0:02:08]}
11... Nbd7 {[%clk 0:02:55.4]} 12. Bc4 {[%clk 0:02:00.7]} 12... Nb6 {[%clk
0:02:44.7]} 13. Bb3 {[%clk 0:02:00.2]} 13... c5 {[%clk 0:02:45.3]} 14. Ne6
{[%clk 0:01:19.3]} 14... fxe6 {[%clk 0:02:43.7]} 15. Bxe6+ {[%clk 0:01:20.2]}
15... Kh8 {[%clk 0:02:43.8]} 16. f4 {[%clk 0:01:18.6]} 16... Bc8 {[%clk
0:02:32.2]} 17. Bd5 {[%clk 0:01:11.8]} 17... Nbxd5 {[%clk 0:02:28.8]} 18. exd5
{[%clk 0:01:11.1]} 18... Rb8 {[%clk 0:02:27.1]} 19. Qe2 {[%clk 0:01:09.4]} 19...
Rf7 {[%clk 0:02:14.8]} 20. Rb1 {[%clk 0:01:06.6]} 20... Nh5 {[%clk 0:02:13.6]}
21. Bd2 {[%clk 0:00:33]} 21... Qf8 {[%clk 0:01:30.8]} 22. Qc4 {[%clk 0:00:19.2]}
22... Rb4 {[%clk 0:01:28.2]} 23. Qd3 {[%clk 0:00:16.4]} 23... Nxf4 {[%clk
0:01:26.7]} 24. Qg3 {[%clk 0:00:17]} 24... Nh5 {[%clk 0:01:16.4]} 25. Qd3 {[%clk
0:00:15.8]} 25... Bf5 {[%clk 0:01:13.6]} 26. Qe2 {[%clk 0:00:16]} 26... Bxc2
{[%clk 0:01:00.1]} 27. a3 {[%clk 0:00:15.8]} 27... Ng3 {[%clk 0:00:49.8]} 28.
Qa6 {[%clk 0:00:08]} 28... Rd4 {[%clk 0:00:40.8]} 29. Be3 {[%clk 0:00:06.7]}
29... Bxb1 {[%clk 0:00:40.2]} 30. Nxb1 {[%clk 0:00:06.6]} 30... Re4 {[%clk
0:00:33.8]} 31. Nc3 {[%clk 0:00:06.4]} 31... Rxe3 {[%clk 0:00:29.3]} 32. Rxe3
{[%clk 0:00:07.3]} 32... Bd4 {[%clk 0:00:29.7]} 33. Kh2 {[%clk 0:00:06.3]} 33...
Nf1+ {[%clk 0:00:29]} 0-1

[Event "Early-Titled-Tuesday-Blitz-January-30-2024"]
[Site "Chess.com"]
[Date "2024.01.30"]
[Round "2"]
[White "Nechitaylo_Nikita"]
[Black "KarstenHansch"]
[Result "0-1"]
[WhiteElo "2308"]
[BlackElo "2544"]
[TimeControl "180+1"]
[EndTime "8:18:34 PST"]
[Termination "KarstenHansch won on time"]

1. d4 {[%clk 0:03:00.9]} 1... Nf6 {[%clk 0:02:59.4]} 2. c4 {[%clk 0:03:00.7]}
2... g6 {[%clk 0:02:59.6]} 3. f3 {[%clk 0:03:00.7]} 3... c5 {[%clk 0:02:58.7]}
4. d5 {[%clk 0:02:59.8]} 4... d6 {[%clk 0:02:56.6]} 5. e4 {[%clk 0:02:58.6]}
5... e6 {[%clk 0:02:57.2]} 6. Nc3 {[%clk 0:02:58.3]} 6... Bg7 {[%clk 0:02:57.3]}
7. Nge2 {[%clk 0:02:57.3]} 7... O-O {[%clk 0:02:56.3]} 8. Ng3 {[%clk 0:02:57.1]}
8... h5 {[%clk 0:02:55]} 9. Be2 {[%clk 0:02:54.2]} 9... h4 {[%clk 0:02:49.3]}
10. Nf1 {[%clk 0:02:54.1]} 10... exd5 {[%clk 0:02:50.2]} 11. cxd5 {[%clk
0:02:53.7]} 11... a6 {[%clk 0:02:49.6]} 12. a4 {[%clk 0:02:52.9]} 12... Re8
{[%clk 0:02:48.6]} 13. Bg5 {[%clk 0:02:20.4]} 13... h3 {[%clk 0:02:44.3]} 14. g3
{[%clk 0:02:21.1]} 14... Qa5 {[%clk 0:02:21.7]} 15. Nd2 {[%clk 0:01:59.6]} 15...
Nbd7 {[%clk 0:01:52.3]} 16. Nc4 {[%clk 0:01:46.8]} 16... Qc7 {[%clk 0:01:51.2]}
17. Bf4 {[%clk 0:01:43.8]} 17... Bf8 {[%clk 0:01:47.8]} 18. a5 {[%clk
0:01:38.1]} 18... b5 {[%clk 0:01:41.7]} 19. axb6 {[%clk 0:01:27.2]} 19... Nxb6
{[%clk 0:01:39.8]} 20. O-O {[%clk 0:01:08.7]} 20... Rb8 {[%clk 0:01:34.6]} 21.
b3 {[%clk 0:00:23.2]} 21... Nxc4 {[%clk 0:01:12.2]} 22. Bxc4 {[%clk 0:00:24.1]}
22... Bg7 {[%clk 0:01:12]} 23. Re1 {[%clk 0:00:18.6]} 23... Nh5 {[%clk
0:01:03.2]} 24. Bd2 {[%clk 0:00:03.7]} 24... Bd4+ {[%clk 0:01:02.4]} 25. Kh1
{[%clk 0:00:03.8]} 25... Qe7 {[%clk 0:01:00.3]} 26. Bxa6 {[%clk 0:00:03.2]}
26... Bxa6 {[%clk 0:01:00]} 27. Rxa6 {[%clk 0:00:03.8]} 27... Rxb3 {[%clk
0:01:00.2]} 28. Ne2 {[%clk 0:00:02.9]} 28... Rd3 {[%clk 0:00:58.1]} 29. Nxd4
{[%clk 0:00:02.8]} 29... Rxd4 {[%clk 0:00:58.5]} 30. Qe2 {[%clk 0:00:02.4]}
30... Rxd5 {[%clk 0:00:50.7]} 31. Qf2 {[%clk 0:00:01.5]} 31... Rd3 {[%clk
0:00:43.1]} 32. Qe2 {[%clk 0:00:02.1]} 32... c4 {[%clk 0:00:43.1]} 33. Rc6
{[%clk 0:00:01.4]} 33... d5 {[%clk 0:00:42.6]} 34. Be3 {[%clk 0:00:01.2]} 34...
dxe4 {[%clk 0:00:39.5]} 35. Bd4 {[%clk 0:00:01.1]} 35... Rxd4 {[%clk 0:00:36.9]}
0-1